[Event "Titled Tuesday Blitz February 28 Early 2023"]
[White "Gabdrakhmanov, Azat"]
[Black "Cheng, Xiao"]
[WhiteFideId "34189197"]
[BlackFideId "2022915"]
[WhiteElo "2315"]
[BlackElo "2390"]
[Result "1-0"]
[Round "03"]
[TimeControl "180+2"]
[Date "2023.02.28"]
[WhiteClock "0:00:18"]
[BlackClock "0:00:24"]

1. e4 {[%clk 0:03:00]}  c5 {[%clk 0:02:53]} 2. Nf3 {[%clk 0:02:58]}  e6 {[%clk 0:02:50]} 3. d4 {[%clk 0:02:58]}  cxd4 {[%clk 0:02:51]} 4. Nxd4 {[%clk 0:02:58]}  Nf6 {[%clk 0:02:52]} 5. Nc3 {[%clk 0:02:56]}  Nc6 {[%clk 0:02:52]} 6. Ndb5 {[%clk 0:02:55]}  d6 {[%clk 0:02:52]} 7. Bf4 {[%clk 0:02:55]}  e5 {[%clk 0:02:53]} 8. Bg5 {[%clk 0:02:55]}  a6 {[%clk 0:02:53]} 9. Na3 {[%clk 0:02:55]}  b5 {[%clk 0:02:53]} 10. Bxf6 {[%clk 0:02:55]}  gxf6 {[%clk 0:02:53]} 11. Nd5 {[%clk 0:02:56]}  f5 {[%clk 0:02:46]} 12. exf5 {[%clk 0:02:57]}  Bxf5 {[%clk 0:02:46]} 13. c3 {[%clk 0:02:57]}  Bg7 {[%clk 0:02:41]} 14. Nc2 {[%clk 0:02:58]}  Be6 {[%clk 0:02:41]} 15. Nce3 {[%clk 0:02:58]}  O-O {[%clk 0:02:38]} 16. g3 {[%clk 0:02:57]}  f5 {[%clk 0:02:38]} 17. f4 {[%clk 0:02:57]}  Ra7 {[%clk 0:02:36]} 18. Bg2 {[%clk 0:02:57]}  Raf7 {[%clk 0:02:31]} 19. O-O {[%clk 0:02:56]}  e4 {[%clk 0:02:30]} 20. a4 {[%clk 0:02:51]}  Ne7 {[%clk 0:02:27]} 21. axb5 {[%clk 0:02:40]}  axb5 {[%clk 0:02:24]} 22. Kh1 {[%clk 0:02:15]}  Qb8 {[%clk 0:02:15]} 23. Qd2 {[%clk 0:01:35]}  b4 {[%clk 0:01:18]} 24. Nxb4 {[%clk 0:01:22]}  d5 {[%clk 0:01:18]} 25. Nec2 {[%clk 0:01:17]}  Qb6 {[%clk 0:01:05]} 26. Ra6 {[%clk 0:01:15]}  e3 {[%clk 0:00:58]} 27. Rxb6 {[%clk 0:00:58]}  exd2 {[%clk 0:00:58]} 28. Rxe6 {[%clk 0:00:59]}  d4 {[%clk 0:00:50]} 29. cxd4 {[%clk 0:00:48]}  Rb8 {[%clk 0:00:48]} 30. Rd1 {[%clk 0:00:45]}  Ng6 {[%clk 0:00:36]} 31. Rxd2 {[%clk 0:00:43]}  Nf8 {[%clk 0:00:36]} 32. Re1 {[%clk 0:00:40]}  Rc7 {[%clk 0:00:35]} 33. d5 {[%clk 0:00:38]}  Bxb2 {[%clk 0:00:34]} 34. d6 {[%clk 0:00:39]}  Rd7 {[%clk 0:00:33]} 35. Bc6 {[%clk 0:00:38]}  Rdd8 {[%clk 0:00:32]} 36. Bd5+ {[%clk 0:00:37]}  Kh8 {[%clk 0:00:30]} 37. Nc6 {[%clk 0:00:30]}  Bc3 {[%clk 0:00:29]} 38. Nxd8 {[%clk 0:00:27]}  Rxd8 {[%clk 0:00:28]} 39. Rde2 {[%clk 0:00:15]}  Bxe1 {[%clk 0:00:28]} 40. Rxe1 {[%clk 0:00:16]}  Rxd6 {[%clk 0:00:27]} 41. Ne3 {[%clk 0:00:16]}  h6 {[%clk 0:00:18]} 42. Bf3 {[%clk 0:00:17]}  Rf6 {[%clk 0:00:15]} 43. Kg2 {[%clk 0:00:16]}  Kg7 {[%clk 0:00:15]} 44. Nd5 {[%clk 0:00:14]}  Rf7 {[%clk 0:00:15]} 45. Re7 {[%clk 0:00:13]}  Ng6 {[%clk 0:00:16]} 46. Rxf7+ {[%clk 0:00:11]}  Kxf7 {[%clk 0:00:17]} 47. Ne3 {[%clk 0:00:11]}  Kf6 {[%clk 0:00:16]} 48. Be2 {[%clk 0:00:12]}  Ne7 {[%clk 0:00:16]} 49. Bd3 {[%clk 0:00:12]}  Ke6 {[%clk 0:00:16]} 50. Nxf5 {[%clk 0:00:12]}  Nxf5 {[%clk 0:00:16]} 51. Bxf5+ {[%clk 0:00:13]}  Kxf5 {[%clk 0:00:17]} 52. Kf3 {[%clk 0:00:13]}  h5 {[%clk 0:00:17]} 53. h3 {[%clk 0:00:14]}  Kf6 {[%clk 0:00:17]} 54. g4 {[%clk 0:00:15]}  h4 {[%clk 0:00:18]} 55. Ke4 {[%clk 0:00:14]}  Ke6 {[%clk 0:00:17]} 56. f5+ {[%clk 0:00:15]}  Kf6 {[%clk 0:00:18]} 57. Kf4 {[%clk 0:00:16]}  Kg7 {[%clk 0:00:18]} 58. g5 {[%clk 0:00:16]}  Kh7 {[%clk 0:00:18]} 59. Kg4 {[%clk 0:00:16]}  Kg7 {[%clk 0:00:19]} 60. Kxh4 {[%clk 0:00:17]}  Kh7 {[%clk 0:00:20]} 61. g6+ {[%clk 0:00:17]}  Kg7 {[%clk 0:00:21]} 62. Kg5 {[%clk 0:00:17]}  Kh8 {[%clk 0:00:21]} 63. Kf6 {[%clk 0:00:17]}  Kg8 {[%clk 0:00:21]} 64. g7 {[%clk 0:00:17]}  Kh7 {[%clk 0:00:21]} 65. Kf7 {[%clk 0:00:18]}  Kh6 {[%clk 0:00:22]} 66. g8=Q {[%clk 0:00:17]}  Kh5 {[%clk 0:00:23]} 67. Qg4+ {[%clk 0:00:17]}  Kh6 {[%clk 0:00:24]} 68. Qg6# {[%clk 0:00:18]} 1-0


[Site "https://www.chess.com"]

[Event "Titled Tuesday Blitz February 28 Early 2023"]
[White "Sai Han Thiha"]
[Black "Koridze, Lile"]
[WhiteFideId "13012290"]
[BlackFideId "13612514"]
[WhiteElo "1954"]
[BlackElo "2047"]
[Result "1-0"]
[Round "03"]
[TimeControl "180+2"]
[Date "2023.02.28"]
[WhiteClock "0:00:07"]
[BlackClock "0:00:05"]

1. d4 {[%clk 0:03:00]}  Nf6 {[%clk 0:02:59]} 2. c4 {[%clk 0:03:01]}  e6 {[%clk 0:02:56]} 3. Nf3 {[%clk 0:03:01]}  d5 {[%clk 0:02:56]} 4. Nc3 {[%clk 0:02:59]}  Bb4 {[%clk 0:02:55]} 5. Qa4+ {[%clk 0:02:57]}  Nc6 {[%clk 0:02:55]} 6. cxd5 {[%clk 0:02:57]}  exd5 {[%clk 0:02:55]} 7. Bg5 {[%clk 0:02:56]}  h6 {[%clk 0:02:50]} 8. Bxf6 {[%clk 0:02:56]}  Qxf6 {[%clk 0:02:51]} 9. e3 {[%clk 0:02:55]}  O-O {[%clk 0:02:51]} 10. Be2 {[%clk 0:02:55]}  Be6 {[%clk 0:02:28]} 11. a3 {[%clk 0:02:55]}  Bd6 {[%clk 0:02:28]} 12. Nb5 {[%clk 0:02:52]}  Qe7 {[%clk 0:02:26]} 13. O-O {[%clk 0:02:30]}  a6 {[%clk 0:02:26]} 14. Nxd6 {[%clk 0:02:29]}  Qxd6 {[%clk 0:02:25]} 15. Rfc1 {[%clk 0:02:30]}  Ne7 {[%clk 0:02:03]} 16. b4 {[%clk 0:02:20]}  c6 {[%clk 0:02:03]} 17. Qa5 {[%clk 0:02:12]}  f5 {[%clk 0:01:57]} 18. Qc5 {[%clk 0:01:53]}  Qxc5 {[%clk 0:01:52]} 19. dxc5 {[%clk 0:01:01]}  f4 {[%clk 0:01:50]} 20. Nd4 {[%clk 0:01:01]}  Bd7 {[%clk 0:01:49]} 21. g4 {[%clk 0:00:55]}  fxe3 {[%clk 0:01:47]} 22. fxe3 {[%clk 0:00:53]}  Ng6 {[%clk 0:01:47]} 23. Rf1 {[%clk 0:00:49]}  Rae8 {[%clk 0:01:46]} 24. Rxf8+ {[%clk 0:00:48]}  Kxf8 {[%clk 0:01:46]} 25. Rf1+ {[%clk 0:00:44]}  Kg8 {[%clk 0:01:42]} 26. Kf2 {[%clk 0:00:44]}  Ne5 {[%clk 0:01:20]} 27. h3 {[%clk 0:00:42]}  Nf7 {[%clk 0:01:20]} 28. Bf3 {[%clk 0:00:37]}  Ng5 {[%clk 0:01:19]} 29. Bg2 {[%clk 0:00:38]}  h5 {[%clk 0:01:04]} 30. h4 {[%clk 0:00:37]}  Ne4+ {[%clk 0:01:03]} 31. Bxe4 {[%clk 0:00:37]}  Rxe4 {[%clk 0:01:04]} 32. gxh5 {[%clk 0:00:35]}  Rxh4 {[%clk 0:01:04]} 33. Kg3 {[%clk 0:00:30]}  Rxh5 {[%clk 0:01:04]} 34. Nf3 {[%clk 0:00:27]}  Rf5 {[%clk 0:00:44]} 35. Rd1 {[%clk 0:00:26]}  Be8 {[%clk 0:00:42]} 36. Rh1 {[%clk 0:00:22]}  Bh5 {[%clk 0:00:26]} 37. Nd4 {[%clk 0:00:22]}  Re5 {[%clk 0:00:25]} 38. Kf2 {[%clk 0:00:20]}  Bg6 {[%clk 0:00:23]} 39. Rg1 {[%clk 0:00:20]}  Be4 {[%clk 0:00:23]} 40. Rg3 {[%clk 0:00:19]}  Kf7 {[%clk 0:00:22]} 41. Rh3 {[%clk 0:00:17]}  Rg5 {[%clk 0:00:21]} 42. Rh8 {[%clk 0:00:17]}  Rg2+ {[%clk 0:00:21]} 43. Kf1 {[%clk 0:00:18]}  Ra2 {[%clk 0:00:21]} 44. Rb8 {[%clk 0:00:18]}  Rxa3 {[%clk 0:00:21]} 45. Rxb7+ {[%clk 0:00:19]}  Kg6 {[%clk 0:00:21]} 46. Nxc6 {[%clk 0:00:19]}  Rxe3 {[%clk 0:00:19]} 47. Ne5+ {[%clk 0:00:18]}  Kf5 {[%clk 0:00:19]} 48. Nd7 {[%clk 0:00:17]}  g5 {[%clk 0:00:18]} 49. c6 {[%clk 0:00:16]}  Rc3 {[%clk 0:00:17]} 50. Nc5 {[%clk 0:00:15]}  d4 {[%clk 0:00:17]} 51. Rf7+ {[%clk 0:00:08]}  Kg6 {[%clk 0:00:17]} 52. Rc7 {[%clk 0:00:07]}  Bd5 {[%clk 0:00:16]} 53. Rd7 {[%clk 0:00:07]}  Bc4+ {[%clk 0:00:13]} 54. Kg2 {[%clk 0:00:05]}  Bb5 {[%clk 0:00:12]} 55. Rd6+ {[%clk 0:00:04]}  Kf5 {[%clk 0:00:12]} 56. c7 {[%clk 0:00:05]}  Rc2+ {[%clk 0:00:09]} 57. Kg3 {[%clk 0:00:05]}  Rc3+ {[%clk 0:00:09]} 58. Kf2 {[%clk 0:00:05]}  Rc2+ {[%clk 0:00:10]} 59. Ke1 {[%clk 0:00:06]}  Re2+ {[%clk 0:00:08]} 60. Kd1 {[%clk 0:00:06]}  Re8 {[%clk 0:00:08]} 61. Rd8 {[%clk 0:00:06]}  Ke5 {[%clk 0:00:03]} 62. Rxe8+ {[%clk 0:00:06]}  Bxe8 {[%clk 0:00:04]} 63. c8=Q {[%clk 0:00:07]}  Bh5+ {[%clk 0:00:04]} 64. Kd2 {[%clk 0:00:07]}  Kd5 {[%clk 0:00:05]} 65. Qe6# {[%clk 0:00:07]} 1-0


[Site "https://www.chess.com"]

[Event "Titled Tuesday Blitz February 28 Early 2023"]
[White "Grieve, Harry"]
[Black "Jovic, Stanoje"]
[WhiteFideId "426520"]
[BlackFideId "905020"]
[WhiteElo "2370"]
[BlackElo "2236"]
[Result "0-1"]
[Round "03"]
[TimeControl "180+2"]
[Date "2023.02.28"]
[WhiteClock "0:00:04"]
[BlackClock "0:01:05"]

1. e4 {[%clk 0:03:00]}  c6 {[%clk 0:02:58]} 2. Nf3 {[%clk 0:02:49]}  d5 {[%clk 0:02:58]} 3. d3 {[%clk 0:02:49]}  dxe4 {[%clk 0:02:57]} 4. dxe4 {[%clk 0:02:50]}  Qxd1+ {[%clk 0:02:57]} 5. Kxd1 {[%clk 0:02:51]}  Bg4 {[%clk 0:02:57]} 6. Nd2 {[%clk 0:02:43]}  Nd7 {[%clk 0:02:55]} 7. h3 {[%clk 0:02:43]}  Bxf3+ {[%clk 0:02:55]} 8. Nxf3 {[%clk 0:02:44]}  e5 {[%clk 0:02:55]} 9. Be3 {[%clk 0:02:35]}  f6 {[%clk 0:02:55]} 10. a4 {[%clk 0:02:34]}  Bc5 {[%clk 0:02:54]} 11. Ke2 {[%clk 0:02:16]}  Bxe3 {[%clk 0:02:51]} 12. Kxe3 {[%clk 0:02:16]}  O-O-O {[%clk 0:02:46]} 13. Bc4 {[%clk 0:02:13]}  Ne7 {[%clk 0:02:46]} 14. a5 {[%clk 0:02:09]}  Kc7 {[%clk 0:02:46]} 15. b4 {[%clk 0:02:06]}  g5 {[%clk 0:02:37]} 16. Ne1 {[%clk 0:01:51]}  Ng6 {[%clk 0:02:36]} 17. g3 {[%clk 0:01:44]}  h5 {[%clk 0:02:35]} 18. Nd3 {[%clk 0:01:41]}  h4 {[%clk 0:02:35]} 19. g4 {[%clk 0:01:28]}  Nf4 {[%clk 0:02:32]} 20. Nxf4 {[%clk 0:01:28]}  exf4+ {[%clk 0:02:31]} 21. Ke2 {[%clk 0:01:26]}  Ne5 {[%clk 0:02:28]} 22. Bb3 {[%clk 0:01:22]}  Rd4 {[%clk 0:02:25]} 23. f3 {[%clk 0:01:14]}  Rxb4 {[%clk 0:02:25]} 24. Rhd1 {[%clk 0:01:13]}  Rd8 {[%clk 0:02:24]} 25. Rxd8 {[%clk 0:00:41]}  Kxd8 {[%clk 0:02:23]} 26. Ra3 {[%clk 0:00:42]}  Kc7 {[%clk 0:02:20]} 27. Ba2 {[%clk 0:00:39]}  Rd4 {[%clk 0:02:16]} 28. Be6 {[%clk 0:00:28]}  b5 {[%clk 0:02:11]} 29. axb6+ {[%clk 0:00:24]}  Kxb6 {[%clk 0:02:08]} 30. Rb3+ {[%clk 0:00:19]}  Kc5 {[%clk 0:02:02]} 31. Ra3 {[%clk 0:00:20]}  Rd6 {[%clk 0:01:56]} 32. Bf5 {[%clk 0:00:15]}  Rd2+ {[%clk 0:01:43]} 33. Kf1 {[%clk 0:00:04]}  Rxc2 {[%clk 0:01:39]} 34. Rxa7 {[%clk 0:00:04]}  Nxf3 {[%clk 0:01:36]} 35. Rf7 {[%clk 0:00:05]}  Kd4 {[%clk 0:01:30]} 36. e5 {[%clk 0:00:02]}  Rc1+ {[%clk 0:01:23]} 37. Kf2 {[%clk 0:00:02]}  Nxe5 {[%clk 0:01:21]} 38. Rxf6 {[%clk 0:00:03]}  Rc3 {[%clk 0:01:14]} 39. Rd6+ {[%clk 0:00:03]}  Kc5 {[%clk 0:01:13]} 40. Re6 {[%clk 0:00:03]}  Kd5 {[%clk 0:01:12]} 41. Re8 {[%clk 0:00:03]}  Rxh3 {[%clk 0:01:11]} 42. Rd8+ {[%clk 0:00:03]}  Kc5 {[%clk 0:01:11]} 43. Rg8 {[%clk 0:00:04]}  Nd3+ {[%clk 0:01:05]} 44. Kg2 {[%clk 0:00:04]}  Rg3+ {[%clk 0:01:05]} 45. Kh2 {[%clk 0:00:04]}  Ne1 {[%clk 0:01:05]} 46. Rxg5 {[%clk 0:00:04]}  Nf3+ {[%clk 0:01:05]} 0-1


[Site "https://www.chess.com"]

[Event "Titled Tuesday Blitz February 28 Early 2023"]
[White "Manelyuk, Daniil"]
[Black "Van Dael, Siem"]
[WhiteFideId "44173920"]
[BlackFideId "1049771"]
[WhiteElo "2259"]
[BlackElo "2336"]
[Result "0-1"]
[Round "03"]
[TimeControl "180+2"]
[Date "2023.02.28"]
[WhiteClock "0:00:03"]
[BlackClock "0:00:09"]

1. e4 {[%clk 0:03:00]}  c5 {[%clk 0:02:57]} 2. Nf3 {[%clk 0:03:00]}  d6 {[%clk 0:02:55]} 3. d4 {[%clk 0:03:00]}  cxd4 {[%clk 0:02:52]} 4. Nxd4 {[%clk 0:03:01]}  Nf6 {[%clk 0:02:52]} 5. Nc3 {[%clk 0:03:01]}  a6 {[%clk 0:02:51]} 6. f3 {[%clk 0:02:57]}  e6 {[%clk 0:02:49]} 7. Be3 {[%clk 0:02:57]}  h5 {[%clk 0:02:46]} 8. Qd2 {[%clk 0:02:57]}  Be7 {[%clk 0:02:41]} 9. Be2 {[%clk 0:02:57]}  Qc7 {[%clk 0:02:41]} 10. O-O {[%clk 0:02:55]}  Nc6 {[%clk 0:02:40]} 11. f4 {[%clk 0:02:51]}  Ng4 {[%clk 0:02:38]} 12. Bxg4 {[%clk 0:02:50]}  hxg4 {[%clk 0:02:39]} 13. f5 {[%clk 0:02:50]}  d5 {[%clk 0:02:34]} 14. g3 {[%clk 0:02:46]}  dxe4 {[%clk 0:02:31]} 15. fxe6 {[%clk 0:02:44]}  Bxe6 {[%clk 0:02:15]} 16. Nxe6 {[%clk 0:02:41]}  fxe6 {[%clk 0:02:16]} 17. Bf4 {[%clk 0:02:18]}  e5 {[%clk 0:02:01]} 18. Be3 {[%clk 0:02:17]}  Nd4 {[%clk 0:01:54]} 19. Bxd4 {[%clk 0:02:13]}  O-O-O {[%clk 0:01:39]} 20. Qe2 {[%clk 0:02:03]}  Rxd4 {[%clk 0:01:32]} 21. Qxg4+ {[%clk 0:01:59]}  Kb8 {[%clk 0:01:32]} 22. Rf7 {[%clk 0:01:44]}  Qc5 {[%clk 0:01:10]} 23. Kh1 {[%clk 0:01:38]}  Rd2 {[%clk 0:01:05]} 24. h4 {[%clk 0:01:37]}  g5 {[%clk 0:00:44]} 25. Nxe4 {[%clk 0:01:29]}  gxh4 {[%clk 0:00:27]} 26. gxh4 {[%clk 0:01:13]}  Qxc2 {[%clk 0:00:14]} 27. Rxe7 {[%clk 0:00:51]}  Rh2+ {[%clk 0:00:14]} 28. Kg1 {[%clk 0:00:51]}  R2xh4 {[%clk 0:00:14]} 29. Re8+ {[%clk 0:00:11]}  Ka7 {[%clk 0:00:10]} 30. Qg3 {[%clk 0:00:03]}  Rh1# {[%clk 0:00:09]} 0-1


[Site "https://www.chess.com"]

[Event "Titled Tuesday Blitz February 28 Early 2023"]
[White "Sourath Biswas"]
[Black "Kovacsy, Barnabas"]
[WhiteFideId "35091484"]
[BlackFideId "769290"]
[WhiteElo "2164"]
[BlackElo "2130"]
[Result "0-1"]
[Round "03"]
[TimeControl "180+2"]
[Date "2023.02.28"]
[WhiteClock "0:00:07"]
[BlackClock "0:01:16"]

1. d4 {[%clk 0:01:47]}  Nf6 {[%clk 0:02:59]} 2. Bf4 {[%clk 0:01:44]}  g6 {[%clk 0:02:59]} 3. Nc3 {[%clk 0:01:44]}  d6 {[%clk 0:02:54]} 4. e4 {[%clk 0:01:44]}  Bg7 {[%clk 0:02:55]} 5. Qd2 {[%clk 0:01:43]}  O-O {[%clk 0:02:54]} 6. O-O-O {[%clk 0:01:40]}  Nbd7 {[%clk 0:02:52]} 7. e5 {[%clk 0:01:33]}  Ne8 {[%clk 0:02:51]} 8. Bh6 {[%clk 0:01:32]}  c6 {[%clk 0:02:45]} 9. h4 {[%clk 0:01:25]}  Qa5 {[%clk 0:02:45]} 10. h5 {[%clk 0:00:44]}  dxe5 {[%clk 0:02:44]} 11. Bxg7 {[%clk 0:00:45]}  Nxg7 {[%clk 0:02:42]} 12. hxg6 {[%clk 0:00:45]}  fxg6 {[%clk 0:02:42]} 13. Qh6 {[%clk 0:00:45]}  Nf6 {[%clk 0:02:32]} 14. Bc4+ {[%clk 0:00:45]}  Be6 {[%clk 0:02:28]} 15. Bxe6+ {[%clk 0:00:40]}  Nxe6 {[%clk 0:02:28]} 16. Ne4 {[%clk 0:00:28]}  Rf7 {[%clk 0:02:23]} 17. Nxf6+ {[%clk 0:00:21]}  exf6 {[%clk 0:02:23]} 18. Nf3 {[%clk 0:00:19]}  Qxa2 {[%clk 0:02:18]} 19. dxe5 {[%clk 0:00:17]}  Qa1+ {[%clk 0:02:09]} 20. Kd2 {[%clk 0:00:18]}  Qxb2 {[%clk 0:01:59]} 21. Ke2 {[%clk 0:00:13]}  Qxc2+ {[%clk 0:01:56]} 22. Rd2 {[%clk 0:00:13]}  Qc4+ {[%clk 0:01:56]} 23. Ke1 {[%clk 0:00:13]}  Re8 {[%clk 0:01:52]} 24. Re2 {[%clk 0:00:11]}  Nd4 {[%clk 0:01:39]} 25. Rd2 {[%clk 0:00:10]}  Nxf3+ {[%clk 0:01:38]} 26. gxf3 {[%clk 0:00:09]}  Rxe5+ {[%clk 0:01:37]} 27. Kd1 {[%clk 0:00:10]}  Qb3+ {[%clk 0:01:27]} 28. Rc2 {[%clk 0:00:10]}  Rc5 {[%clk 0:01:21]} 29. Qd2 {[%clk 0:00:07]}  Rd5 {[%clk 0:01:16]} 0-1


[Site "https://www.chess.com"]

[Event "Titled Tuesday Blitz February 28 Early 2023"]
[White "Alahakoon, Isuru"]
[Black "Pinheiro, Iung Alicio de O."]
[WhiteFideId "9900993"]
[BlackFideId "2104350"]
[WhiteElo "1995"]
[BlackElo "2283"]
[Result "1/2-1/2"]
[Round "03"]
[TimeControl "180+2"]
[Date "2023.02.28"]
[WhiteClock "0:00:16"]
[BlackClock "0:00:11"]

1. Nf3 {[%clk 0:03:00]}  c5 {[%clk 0:02:58]} 2. c3 {[%clk 0:03:00]}  Nf6 {[%clk 0:02:49]} 3. d4 {[%clk 0:03:00]}  e6 {[%clk 0:02:50]} 4. Bf4 {[%clk 0:03:00]}  b6 {[%clk 0:02:47]} 5. e3 {[%clk 0:02:59]}  Bb7 {[%clk 0:02:47]} 6. Nbd2 {[%clk 0:02:59]}  Be7 {[%clk 0:02:47]} 7. Nc4 {[%clk 0:02:59]}  d5 {[%clk 0:02:32]} 8. Nce5 {[%clk 0:02:57]}  O-O {[%clk 0:02:31]} 9. Bd3 {[%clk 0:02:56]}  Ne4 {[%clk 0:02:17]} 10. Nd2 {[%clk 0:02:26]}  f6 {[%clk 0:02:10]} 11. Nef3 {[%clk 0:02:24]}  Nd7 {[%clk 0:02:01]} 12. Qc2 {[%clk 0:02:13]}  f5 {[%clk 0:01:46]} 13. O-O {[%clk 0:02:08]}  Rc8 {[%clk 0:01:41]} 14. Ne5 {[%clk 0:01:43]}  Nxe5 {[%clk 0:01:24]} 15. Bxe5 {[%clk 0:01:41]}  Bd6 {[%clk 0:01:24]} 16. Bxe4 {[%clk 0:01:34]}  fxe4 {[%clk 0:01:14]} 17. Bxd6 {[%clk 0:01:30]}  Qxd6 {[%clk 0:01:15]} 18. f3 {[%clk 0:01:26]}  Ba6 {[%clk 0:01:13]} 19. Rf2 {[%clk 0:01:20]}  Bd3 {[%clk 0:01:13]} 20. Qa4 {[%clk 0:01:14]}  a6 {[%clk 0:00:52]} 21. Qd1 {[%clk 0:01:01]}  cxd4 {[%clk 0:00:45]} 22. cxd4 {[%clk 0:01:00]}  Rc2 {[%clk 0:00:43]} 23. Nxe4 {[%clk 0:00:53]}  dxe4 {[%clk 0:00:16]} 24. Rxc2 {[%clk 0:00:52]}  Bxc2 {[%clk 0:00:17]} 25. Qxc2 {[%clk 0:00:52]}  exf3 {[%clk 0:00:18]} 26. gxf3 {[%clk 0:00:44]}  Rxf3 {[%clk 0:00:19]} 27. Rf1 {[%clk 0:00:35]}  Rxf1+ {[%clk 0:00:17]} 28. Kxf1 {[%clk 0:00:36]}  b5 {[%clk 0:00:18]} 29. Qe4 {[%clk 0:00:35]}  h6 {[%clk 0:00:17]} 30. Kg2 {[%clk 0:00:30]}  Kh8 {[%clk 0:00:17]} 31. a3 {[%clk 0:00:28]}  Kg8 {[%clk 0:00:17]} 32. Qa8+ {[%clk 0:00:27]}  Kh7 {[%clk 0:00:17]} 33. Qe4+ {[%clk 0:00:26]}  Kh8 {[%clk 0:00:17]} 34. Qa8+ {[%clk 0:00:23]}  Kh7 {[%clk 0:00:17]} 35. Qe4+ {[%clk 0:00:23]}  Kg8 {[%clk 0:00:18]} 36. Qa8+ {[%clk 0:00:23]}  Kf7 {[%clk 0:00:18]} 37. Qb7+ {[%clk 0:00:22]}  Kf6 {[%clk 0:00:19]} 38. Qf3+ {[%clk 0:00:21]}  Ke7 {[%clk 0:00:17]} 39. Qb7+ {[%clk 0:00:20]}  Qd7 {[%clk 0:00:16]} 40. Qxa6 {[%clk 0:00:19]}  Qd5+ {[%clk 0:00:16]} 41. Kf2 {[%clk 0:00:18]}  Qb3 {[%clk 0:00:15]} 42. Qb7+ {[%clk 0:00:18]}  Kf6 {[%clk 0:00:12]} 43. Qf3+ {[%clk 0:00:18]}  Kg6 {[%clk 0:00:13]} 44. Qe2 {[%clk 0:00:18]}  Qd5 {[%clk 0:00:10]} 45. Qg4+ {[%clk 0:00:17]}  Kh7 {[%clk 0:00:10]} 46. Qf3 {[%clk 0:00:17]}  Qb3 {[%clk 0:00:10]} 47. Qe4+ {[%clk 0:00:18]}  Kg8 {[%clk 0:00:10]} 48. Qa8+ {[%clk 0:00:17]}  Kf7 {[%clk 0:00:11]} 49. Qf3+ {[%clk 0:00:17]}  Ke7 {[%clk 0:00:11]} 50. Qb7+ {[%clk 0:00:16]}  Kd8 {[%clk 0:00:11]} 51. Qb8+ {[%clk 0:00:16]}  Ke7 {[%clk 0:00:11]} 52. Qc7+ {[%clk 0:00:15]}  Kf6 {[%clk 0:00:11]} 53. Qe5+ {[%clk 0:00:15]}  Kg6 {[%clk 0:00:11]} 54. Qe4+ {[%clk 0:00:15]}  Kf7 {[%clk 0:00:12]} 55. Qf3+ {[%clk 0:00:16]}  Kg8 {[%clk 0:00:11]} 56. Qe2 {[%clk 0:00:16]}  Qd5 {[%clk 0:00:10]} 57. Qf3 {[%clk 0:00:16]}  Qb3 {[%clk 0:00:11]} 58. Qa8+ {[%clk 0:00:16]}  Kh7 {[%clk 0:00:10]} 59. Qe4+ {[%clk 0:00:16]}  Kh8 {[%clk 0:00:11]} 60. Qa8+ {[%clk 0:00:16]}  Kh7 {[%clk 0:00:11]} 61. Qe4+ {[%clk 0:00:16]} 1/2-1/2


[Site "https://www.chess.com"]

[Event "Titled Tuesday Blitz February 28 Early 2023"]
[White "Ruiz Aguilar, Pablo Alexander"]
[Black "Berezin, Viktor"]
[WhiteFideId "4401352"]
[BlackFideId "14107872"]
[WhiteElo "2138"]
[BlackElo "2310"]
[Result "0-1"]
[Round "03"]
[TimeControl "180+2"]
[Date "2023.02.28"]
[WhiteClock "0:00:50"]
[BlackClock "0:00:53"]

1. e4 {[%clk 0:03:00]}  g6 {[%clk 0:02:58]} 2. d4 {[%clk 0:03:00]}  Bg7 {[%clk 0:02:59]} 3. Nc3 {[%clk 0:02:59]}  d6 {[%clk 0:02:59]} 4. f4 {[%clk 0:02:58]}  Nf6 {[%clk 0:02:59]} 5. Nf3 {[%clk 0:02:58]}  O-O {[%clk 0:02:59]} 6. e5 {[%clk 0:02:55]}  Ne8 {[%clk 0:02:59]} 7. Bc4 {[%clk 0:02:54]}  c5 {[%clk 0:02:56]} 8. dxc5 {[%clk 0:02:50]}  Nc6 {[%clk 0:02:54]} 9. cxd6 {[%clk 0:02:49]}  exd6 {[%clk 0:02:54]} 10. Be3 {[%clk 0:02:41]}  Bg4 {[%clk 0:02:50]} 11. h3 {[%clk 0:02:20]}  Bxf3 {[%clk 0:02:47]} 12. Qxf3 {[%clk 0:02:20]}  dxe5 {[%clk 0:02:47]} 13. Rd1 {[%clk 0:02:20]}  Qa5 {[%clk 0:02:23]} 14. Rd5 {[%clk 0:02:20]}  Qc7 {[%clk 0:02:18]} 15. Bc5 {[%clk 0:02:08]}  Nf6 {[%clk 0:02:00]} 16. Bxf8 {[%clk 0:02:07]}  Rxf8 {[%clk 0:01:44]} 17. Rd1 {[%clk 0:01:45]}  Nd4 {[%clk 0:01:29]} 18. Qd3 {[%clk 0:01:44]}  Nxc2+ {[%clk 0:01:28]} 19. Qxc2 {[%clk 0:01:43]}  Qxc4 {[%clk 0:01:27]} 20. fxe5 {[%clk 0:01:37]}  Re8 {[%clk 0:01:22]} 21. Qe2 {[%clk 0:01:32]}  Qh4+ {[%clk 0:01:21]} 22. Qf2 {[%clk 0:01:22]}  Rxe5+ {[%clk 0:01:10]} 23. Ne2 {[%clk 0:01:23]}  Qb4+ {[%clk 0:01:02]} 24. Kf1 {[%clk 0:01:12]}  Rf5 {[%clk 0:01:02]} 25. Qxf5 {[%clk 0:01:05]}  gxf5 {[%clk 0:01:03]} 26. Rd8+ {[%clk 0:01:02]}  Bf8 {[%clk 0:01:03]} 27. h4 {[%clk 0:00:51]}  Ng4 {[%clk 0:00:56]} 28. Rh3 {[%clk 0:00:50]}  Qb6 {[%clk 0:00:53]} 0-1


[Site "https://www.chess.com"]

[Event "Titled Tuesday Blitz February 28 Early 2023"]
[White "Klepikov, Nikita"]
[Black "Tologon tegin, Semetei"]
[WhiteFideId "24145220"]
[BlackFideId "13800574"]
[WhiteElo "2025"]
[BlackElo "2247"]
[Result "0-1"]
[Round "03"]
[TimeControl "180+2"]
[Date "2023.02.28"]
[WhiteClock "0:00:02"]
[BlackClock "0:00:25"]

1. e4 {[%clk 0:03:00]}  c6 {[%clk 0:02:55]} 2. d4 {[%clk 0:03:00]}  d5 {[%clk 0:02:55]} 3. Nd2 {[%clk 0:03:01]}  dxe4 {[%clk 0:02:56]} 4. Nxe4 {[%clk 0:03:02]}  Bf5 {[%clk 0:02:54]} 5. Ng3 {[%clk 0:03:02]}  Bg6 {[%clk 0:02:55]} 6. N1e2 {[%clk 0:03:03]}  e6 {[%clk 0:02:53]} 7. h4 {[%clk 0:03:03]}  h6 {[%clk 0:02:52]} 8. Nf4 {[%clk 0:03:04]}  Bh7 {[%clk 0:02:53]} 9. c3 {[%clk 0:03:01]}  Nf6 {[%clk 0:02:52]} 10. Nfh5 {[%clk 0:02:59]}  Bd6 {[%clk 0:02:49]} 11. Nxg7+ {[%clk 0:02:59]}  Kf8 {[%clk 0:02:48]} 12. Bxh6 {[%clk 0:02:57]}  Kg8 {[%clk 0:02:44]} 13. Qd2 {[%clk 0:02:48]}  Bxg3 {[%clk 0:02:37]} 14. Qg5 {[%clk 0:02:32]}  Bxf2+ {[%clk 0:02:33]} 15. Ke2 {[%clk 0:02:27]}  Bg6 {[%clk 0:02:10]} 16. h5 {[%clk 0:02:22]}  Be3 {[%clk 0:01:23]} 17. Qxe3 {[%clk 0:02:07]}  Ng4 {[%clk 0:01:21]} 18. Qf4 {[%clk 0:01:06]}  Rxh6 {[%clk 0:01:15]} 19. hxg6 {[%clk 0:01:05]}  Rxg6 {[%clk 0:01:09]} 20. Nh5 {[%clk 0:00:55]}  Nd7 {[%clk 0:01:03]} 21. Kf3 {[%clk 0:00:47]}  e5 {[%clk 0:01:03]} 22. Qf5 {[%clk 0:00:35]}  exd4 {[%clk 0:00:59]} 23. cxd4 {[%clk 0:00:36]}  Ndf6 {[%clk 0:00:33]} 24. Bd3 {[%clk 0:00:25]}  Qxd4 {[%clk 0:00:31]} 25. Ke2 {[%clk 0:00:03]}  Qe3+ {[%clk 0:00:28]} 26. Kd1 {[%clk 0:00:03]}  Rd8 {[%clk 0:00:27]} 27. Nxf6+ {[%clk 0:00:02]}  Nxf6 {[%clk 0:00:25]} 0-1


[Site "https://www.chess.com"]